Cogmind - Beta 13 @@@ ROGUE MODE // 2024.04.05 @ 16:29:23 Player: Scringis Result: Destroyed by GJ-QXI(R) with Subdweller Laser Performance ------------- Evolutions (0) 0 Regions Visited (3) 600 Robots Destroyed (28) 140 Value Destroyed (652) 652 Prototype IDs (0) 0 Alien Tech Used (0) 0 Bonus (0) 0 TOTAL SCORE: 1392 Bonus ------- None Cogmind --------- Core Integrity 0/250 Matter 285/300 Energy 40/100 System Corruption 0% Temperature Cool (6) Movement Treading (240) Ox1 Location -10/Subcaves Parts ------- > --- POWER (1) -------- (None) > --- PROPULSION (2) --- Light Treads > --- UTILITY (2) ------ Large Storage Unit Hacking Suite > --- WEAPON (2) ------- Particle Gun Particle Gun > --- INVENTORY (15) --- Reinforced Ion Engine Light Nuclear Core Large Matter Pod (123) Subdweller Optics Targeting Computer Targeting Computer Light Armor Plating Light Cannon Slug Cannon Flamer Peak State ------------ > --- POWER ------------ Reinforced Ion Engine > --- PROPULSION ------- Light Treads Light Treads > --- UTILITY ---------- Large Storage Unit Hacking Suite > --- WEAPON ----------- Autogun Autogun > --- INVENTORY -------- Reinforced Ion Engine Light Nuclear Core Large Matter Pod Targeting Computer Targeting Computer Light Armor Plating Particle Gun Particle Gun Light Assault Rifle Autogun Autogun Light Cannon Mining Laser [Rating: 14] Favorites ----------- Power Reinforced Ion Engine Engine Reinforced Ion Engine Propulsion Light Treads Treads Light Treads Utility Large Storage Unit Storage Large Storage Unit Hackware Hacking Suite Weapon Autogun Energy Gun Particle Gun Ballistic Gun Autogun Special Weapon Mining Laser Build | -11 -10 -10 -10 ------- Run | Yrd Mat Min Sub Slots Evolved . | . . . . Power . | . . . . Propulsion . | . . . . Utility . | . . . . Weapon . | . . . . Parts Attached 25 | 6 7 3 9 Power 4 | 1 2 . 1 Engine 4 | 1 2 . 1 Core . | . . . . Reactor . | . . . . Propulsion 4 | 2 . 2 . Treads 4 | 2 . 2 . Leg . | . . . . Wheel . | . . . . Hover . | . . . . Flight . | . . . . Utility 4 | 1 3 . . Device . | . . . . Storage 2 | 1 1 . . Processor . | . . . . Hackware 2 | . 2 . . Protection . | . . . . Artifact . | . . . . Weapon 13 | 2 2 1 8 Energy Gun 2 | . . . 2 Energy Cannon . | . . . . Ballistic Gun 8 | 2 2 . 4 Ballistic Cannon . | . . . . Launcher . | . . . . Special Weapon 3 | . . 1 2 Impact Weapon . | . . . . Slashing Weapon . | . . . . Piercing Weapon . | . . . . Special Melee Weapon . | . . . . Unidentified Prototypes . | . . . . Parts Lost 9 | . 2 1 6 Power 2 | . 1 . 1 Propulsion 2 | . . 1 1 Utility 1 | . 1 . . Weapon 4 | . . . 4 Highest Loss Streak 2 | . 2 1 2 To Critical Strikes . | . . . . Average Slot Usage (%) 93 | . 95 99 82 Engine 14 | . 14 14 14 Treads 24 | . 28 27 15 Storage 14 | . 14 14 14 Hackware 12 | . 10 14 14 Ballistic Gun 25 | . 28 27 19 Special Weapon 1 | . . . 3 Naked Turns . | . . . . Heaviest Build 36 | 11 36 36 36 Greatest Support 40 | 40 40 40 40 Greatest Overweight (x) 1 | . . . 1 Average Overweight (x) . | . . . . Largest Inventory Capacity 15 | 8 15 15 15 Average Capacity 14 | 7 14 15 15 Most Carried 14 | 5 12 13 14 Average Carried 10 | 1 6 12 11 Final Capacity 15 | 8 15 15 15 Final Carried 13 | 2 12 13 10 Class Distribution -------------------- 100% | Mutant Dominant Class ---------------- Mutant | -10/Materials Mutant | -10/Mines Mutant | -10/Subcaves Resources | -11 -10 -10 -10 ----------- Run | Yrd Mat Min Sub Matter Collected 956 | 211 214 318 213 Remotely . | . . . . Salvage Created 731 | . 329 217 185 Parts 64 | . 32 13 19 Haulers Intercepted 1 | . 1 . . Recyclers Shooed . | . . . . Parts Field Recycled . | . . . . Retrieved Matter . | . . . . Parts Self-Destructed . | . . . . Prevented . | . . . . Kills | -11 -10 -10 -10 ------- Run | Yrd Mat Min Sub Combat Hostiles Destroyed 20 | . 9 6 5 Guns 20 | . 9 6 5 Classes Destroyed 8 | . 6 1 1 Builder 1 | . 1 . . Tunneler 2 | . . 2 . Hauler 1 | . 1 . . Operator 2 | . 2 . . Watcher 2 | . 2 . . Swarmer 8 | . 6 2 . Grunt 7 | . 3 4 . Subdweller 5 | . . . 5 Best Kill Streak 4 | . 3 4 2 Combat Bots Only 4 | . 3 4 2 Max Kills in Single Turn 1 | . 1 1 1 Gunslinging . | . . . . Exploded . | . . . . Melee . | . . . . Uniques/NPCs Destroyed . | . . . . Combat | -11 -10 -10 -10 -------- Run | Yrd Mat Min Sub Hostile Shots Fired 131 | . 47 27 57 Missed 33 | . 7 6 20 Damage Taken 1539 | . 382 273 884 Core 260 | . 63 25 172 Absorbed by Shields . | . . . . Core Remaining (%) 100 | 100 . . . Volleys Fired 81 | . 37 17 27 Largest 2 | . 2 2 2 Hottest 130 | . 46 100 130 Shots Fired 152 | . 74 30 48 Gun 142 | . 74 26 42 Cannon . | . . . . Launcher . | . . . . Special 10 | . . 4 6 Kinetic 134 | . 74 26 34 Thermal 18 | . . 4 14 Explosive . | . . . . Electromagnetic . | . . . . Robot Hit Streak 20 | . 6 11 20 Robot Miss Streak 3 | . 3 1 2 Penetration Max . | . . . . Secondary Targets 5 | . 2 2 1 Max Gunslinging Chain 1 | . 1 1 1 Shots Hit Robots 94 | . 37 21 36 Core Hits 38 | . 19 10 9 Critical Kills . | . . . . Critical Parts Destroyed . | . . . . Critical Strikes . | . . . . Melee Attacks . | . . . . Impact . | . . . . Slashing . | . . . . Piercing . | . . . . Sneak Attacks . | . . . . Combat Hostiles . | . . . . Follow-up Attacks . | . . . . Damage Inflicted 1368 | . 555 406 407 Guns 1286 | . 547 332 407 Cannons . | . . . . Explosions . | . . . . Melee . | . . . . Ramming 82 | . 8 74 . Kinetic 1269 | . 547 332 390 Thermal 17 | . . . 17 Explosive . | . . . . Electromagnetic . | . . . . Impact . | . . . . Slashing . | . . . . Piercing . | . . . . Highest Corruption . | . . . . Average Corruption . | . . . . Corruption Purged . | . . . . Corruption Blocked . | . . . . Overload Shots . | . . . . Overflow Damage . | . . . . Projectiles . | . . . . Explosions . | . . . . Melee . | . . . . Knockbacks . | . . . . Impact . | . . . . Kinetic . | . . . . Secondary . | . . . . Self-Inflicted Damage . | . . . . Shots . | . . . . Rammed 21 | . 2 19 . Targets Rammed 23 | . 3 20 . Kicked . | . . . . Crushed 2 | . 1 1 . Highest Temperature 137 | . 71 137 8 Average Temperature 30 | . 17 45 3 Received Heat Transfer 408 | . 39 138 231 Siege Activations . | . . . . Robots Corrupted . | . . . . Combat Hostiles . | . . . . Parts Fried . | . . . . Impact Corruptions . | . . . . Robots Melted . | . . . . Combat Hostiles . | . . . . Parts Melted . | . . . . Heat Transferred 37 | . . . 37 Parts Sabotaged . | . . . . Parts Stolen . | . . . . Parts Stripped . | . . . . Power Chain Reactions . | . . . . Alert | -11 -10 -10 -10 ------- Run | Yrd Mat Min Sub Peak Influence 157 | . 157 105 . Initial 9 | . . 9 . Average 44 | . 59 35 . Maximum Alert Level . | . . . . Low Security (%) 100 | 100 100 100 . Level 1 . | . . . . Level 2 . | . . . . Level 3 . | . . . . Level 4 . | . . . . Level 5 . | . . . . High Security . | . . . . Max Security . | . . . . Squads Dispatched 1 | . 1 . . Investigation . | . . . . Extermination . | . . . . Reinforcement 1 | . 1 . . Assault . | . . . . Garrison . | . . . . Intercept . | . . . . Searches Triggered . | . . . . Construction Impeded . | . . . . Haulers Reinforced . | . . . . Active Scanning Responses . | . . . . Cargo Convoy Interrupts . | . . . . Stealth | -11 -10 -10 -10 --------- Run | Yrd Mat Min Sub Distress Signals . | . . . . Communications Jammed . | . . . . Distress Signals . | . . . . Times Spotted 29 | . 16 7 6 Peak Tracking Total 4 | . 4 3 2 Tactical Retreats 1 | . 1 . . Traps | -11 -10 -10 -10 ------- Run | Yrd Mat Min Sub Traps Triggered 3 | . 1 . 2 Indirectly . | . . . . Trap Hack Attempts . | . . . . Triggered . | . . . . Disarmed . | . . . . Reprogrammed . | . . . . Reused . | . . . . Traps Extracted . | . . . . Installed . | . . . . Triggered . | . . . . Machines | -11 -10 -10 -10 ---------- Run | Yrd Mat Min Sub Machines Disabled 1 | . 1 . . Max in Single Turn 1 | . 1 . . Machines Repaired . | . . . . Machines Dismantled . | . . . . Machines Sabotaged . | . . . . Overloaded Fab Kills . | . . . . Hacking | -11 -10 -10 -10 --------- Run | Yrd Mat Min Sub Machines Accessed 1 | . 1 . . Terminals 1 | . 1 . . Fabricators . | . . . . Repair Stations . | . . . . Recycling Units . | . . . . Scanalyzers . | . . . . Garrison Access . | . . . . Total Hacks 3 | . 3 . . Successful 1 | . 1 . . Failed 2 | . 2 . . Catastrophic . | . . . . Database Lockouts . | . . . . Manual . | . . . . Terminals 3 | . 3 . . Fabricators . | . . . . Repair Stations . | . . . . Recycling Units . | . . . . Scanalyzers . | . . . . Garrison Access . | . . . . Terminal Hacks 1 | . 1 . . Locate Traps 1 | . 1 . . Fabricator Hacks . | . . . . Repair Station Hacks . | . . . . Recycling Unit Hacks . | . . . . Scanalyzer . | . . . . Garrison Access Hacks . | . . . . Unauthorized Hacks . | . . . . Terminals . | . . . . Fabricators . | . . . . Repair Stations . | . . . . Recycling Units . | . . . . Scanalyzers . | . . . . Garrison Access . | . . . . Data Cores Recovered 1 | . 1 . . Used . | . . . . Hacking Detections . | . . . . Full Trace Events . | . . . . Feedback Events . | . . . . Feedback Blocked . | . . . . Robot Schematics Acquired . | . . . . Robots Built . | . . . . Authchips . | . . . . Time . | . . . . Total Robot Build Rating . | . . . . Part Schematics Acquired . | . . . . Parts Built . | . . . . Authchips . | . . . . Time . | . . . . Total Part Build Rating . | . . . . Parts Repaired . | . . . . Time . | . . . . Parts Recycled . | . . . . Recycled Matter . | . . . . Retrieved Matter . | . . . . Retrieved Components . | . . . . Parts Scanalyzed . | . . . . Part Schematics Acquired . | . . . . Parts Damaged . | . . . . Bothacking | -11 -10 -10 -10 ------------ Run | Yrd Mat Min Sub Used RIF Installer . | . . . . Robots Hacked . | . . . . Non-combat . | . . . . Combat . | . . . . Robot Hacks Applied . | . . . . Relay Couplers Released . | . . . . Fabnet Peak Effective % . | . . . . Robots Rewired . | . . . . Allies Hacked . | . . . . Hacks Repelled . | . . . . Allies | -11 -10 -10 -10 -------- Run | Yrd Mat Min Sub Total Allies . | . . . . Largest Group . | . . . . Highest-Rated Group . | . . . . Highest-Rated Ally . | . . . . Total Orders . | . . . . Ally Attacks . | . . . . Total Damage . | . . . . Kills . | . . . . Allies Corrupted . | . . . . Allies Melted . | . . . . Intel | -11 -10 -10 -10 ------- Run | Yrd Mat Min Sub Robot Analysis Total . | . . . . Derelict Logs Recovered 3 | . . 2 1 Drone Launches . | . . . . Drone Recoveries . | . . . . Exploration | -11 -10 -10 -10 ------------- Run | Yrd Mat Min Sub Turns Passed 3333 | 113 1136 1269 815 Spaces Moved 1645 | 73 621 637 314 Core 15 | 15 . . . Treads 1630 | 58 621 637 314 Legs . | . . . . Wheels . | . . . . Hover . | . . . . Flight . | . . . . Fastest Speed 50 | 50 160 160 160 Average Speed 171 | 137 160 160 227 Slowest Speed 240 | 160 160 160 240 Overloaded Moves . | . . . . Propulsion Burnouts . | . . . . Robots Hopped . | . . . . Cave-ins Triggered . | . . . . Exploration Rate (%) 53 | 4 89 99 22 Regions Visited 3 Branch Regions 2 Pre-discovered Areas 2 | . . 1 1 Known Exits Taken . | . . . . Unknown Exits Taken 3 | 1 1 1 . Scrap Searched 1 | . . 1 . Spaces Dug . | . . . . Terrain Destroyed . | . . . . Melee . | . . . . Projectile . | . . . . AOE . | . . . . Terrain Rammed . | . . . . Walls Destroyed . | . . . . Machines Disabled . | . . . . Actions | -11 -10 -10 -10 --------- Run | Yrd Mat Min Sub Total 1992 | 86 703 842 361 Wait 177 | . 13 162 2 Move 1642 | 72 620 636 314 Hop . | . . . . Pick Up 33 | 8 18 3 4 Fast Attach . | . . . . Attach 21 | 6 6 2 7 Detach 2 | . . . 2 Swap 4 | . 1 1 2 Drop 9 | . 5 1 3 Fire 81 | . 37 17 27 Melee . | . . . . Ram . | . . . . Kick . | . . . . Crush 23 | . 3 20 . Escape Stasis . | . . . . Rewire . | . . . . Trap . | . . . . Miscellaneous . | . . . . Route ------- -11/Scrapyard -10/Materials (discovered 4 exits: [*Mat x3] / [*Min]) -10/Mines (discovered 3 exits: [*Mat x2] / [*Sub]) -10/Subcaves (discovered 1 exit: [*Mat]) History --------- Turn | Location | Event 2 | -11/Scrapyard | Met Revision 17 30 | -11/Scrapyard | Discovered new exit (range 15) 114 | -11/Scrapyard | Entered Materials 314 | -10/Materials | Build established: Mutant 580 | -10/Materials | Discovered new exit (range 16) 799 | -10/Materials | Discovered new exit (range 13) 1013 | -10/Materials | Discovered new exit (range 8) 1225 | -10/Materials | Discovered new exit (range 7) 1250 | -10/Materials | Entered Mines 1358 | -10/Mines | Discovered new exit (range 8) 1359 | -10/Mines | Met a Derelict bent on vengeance 1412 | -10/Mines | Discovered new exit (range 8) 1618 | -10/Mines | Learned Materials terminal intel 2196 | -10/Mines | Learned location of Storage (-8) 2516 | -10/Mines | Discovered new exit (range 3) 2519 | -10/Mines | Entered Subcaves 2539 | -10/Subcaves | Learned Materials stockpile data 2633 | -10/Subcaves | Core integrity fell below 50% 3065 | -10/Subcaves | Learned location of Zion (-7) 3065 | -10/Subcaves | Met a Zionite searching for "candidates" 3249 | -10/Subcaves | Discovered new exit (range 10) 3322 | -10/Subcaves | Core integrity fell below 20% 3334 | -10/Subcaves | Destroyed by GJ-QXI(R) with Subdweller Laser Last Messages --------------- Acquired 12 matter. Triggered Piercing Trap. Spikes shoot up from the floor. Critical hit (Impale). Autogun destroyed. Critical hit (Impale). XH-X6H(z): "Hey you! It's really dangerous down here, I feel that you could die at any moment. For your health and safety might I suggest a trip to Zion?" World map updated: -7/Zion. Acquired 12 matter. EXIT=FOUND Acquired Slug Cannon. Subatomizers dissect the Ion Engine. 0Z-G84(R): "SUBMAD!" Autogun destroyed. Broken Sub. Power Source destroyed. 0Z-G84(R) destroyed. Switching to secondary target: GJ-QXI(R). Map ----- +----------------------------------------------------+ | ???????????# ##?????????????????????????? | | ???????????# #?????????????????????????? | | ???????????# #?????????????????????????? | | ??????????# ##?????????????????????????? | | ??????????# ## ##??????????????????????????? | | ??????????###?### #???????????????????????????? | | ?????????????????# #??????????????????????????? | | ?????????????????? #?????????????????????????? | | ?????????????????? #????????????????????????? | | ?????????????????? #???????????????????????? | | ??????????????????? ####???????????????????????? | | ??????????????????? #??????????????????????????? | | ???????????????????# #??????????????????????????? | | ????????????????????? ??????????????????????????? | | ?????????????????????? ?????????????????????????? | | ??????????????????? ????????????????????????????? | | ?????????????????? ???????????????????????????? | | ?????????????????# ????????##?##???????????????? | | ??????????????### #???????? ##" ???????????????? | | ????????????## #????????? "" ??????????????? | | ??????????### #?????????? ""#??????????????? | | ####?????## #?????????? #???????????????? | | # #?????# < ?????###??##"" "##??????????????? | | #?????# #?????## #### R"" "##?????????????? | | #????## ######## " """ #?????????????? | | #??### # ## @ [%*"" #??????????????? | | #### !%[ #??????????????? | | ## ### " #??????????????? | | * ## # #??? #?????????????? | | #### ########## #??? !%!???????????? | | ???####????????## ##????? &* ??????????? | | ????????????????### ### ####??????? ## ?????????? | | ??????????????????####?###???????????#???????????? | | ?????????????????????????????????????????????????? | | ?????????????????????????????????????????????????? | | ?????????????????????????????????????????????????? | | ?????????????????????????????????????????????????? | | ?????????????????????????????????????????????????? | | ?????????????????????????????????????????????????? | | ?????????????????????????????????????????????????? | | ?????????????????????????????????????????????????? | | ?????????????????????????????????????????????????? | | ?????????????????????????????????????????????????? | | ?????????????????????????????????????????????????? | | ?????????????????????????????????????????????????? | | ?????????????????????????????????????????????????? | | ?????????????????????????????????????????????????? | | ?????????????????????????????????????????????????? | | ?????????????????????????????????????????????????? | | ?????????????????????????????????????????????????? | +----------------------------------------------------+ Best States ------------- Heat Dissipation 25 Energy Generation 15 Energy Capacity 265 Matter Stores 300 Matter Capacity 300 Sight Range 16 Terrain Scan Density 10 Evasion (%) 50 Recoil Reduction 2 Offensive Hacking 10 Item Schematics ----------------- None Robot Schematics ------------------ None Fabricated ------------ Nothing Alien Tech Used ----------------- None Achievements -------------- None Challenges ------------ None Game ------ Seed ExoskeletonReinforcedMatter Manual? 0 Play Time 00:11:45 Cumulative 10.5 hours Start 2024.04.05 @ 16:17:37 End 2024.04.05 @ 16:29:23 Sessions 3 Manual Loads 0 Difficulty Rogue Special Mode None Game No. 39 Rogue 39 Adventurer 0 Explorer 0 Win Type - Total 0 Types 0/0/0/0/0/0/0/0/0 Lore% 15 Gallery% 15 Achievement% 14 Wizard Run 0 Options --------- Layout 1 ASCII 0 Keyboard 0 Movement Arrows Keybinds 0 Fullscreen 1 Font 24/Smallcaps Map View 50x35 Zoom Use 0% Tactical HUD 0 Map Filters NONE Filters NONE Steam 1 RUN: ce8d053d-6ca2-42fe-a7af-27026ca2cd21